Cogmind - Beta 12 @@@ ROGUE MODE // 2023.12.07 @ 00:27:23 Player: Mozco Result: Destroyed by G-67 Veteran with Field Laser Performance ------------- Evolutions (7) 3500 Regions Visited (14) 2800 Robots Destroyed (219) 1095 Value Destroyed (10768) 10768 Prototype IDs (38) 760 Alien Tech Used (0) 0 Bonus (4344) 4344 TOTAL SCORE: 23267 Bonus ------- High Alert Combat Kills 3297 Follower Combat Kills 605 Entered DSFs 500 Met Warlord at Base 500 MAIN.C Attacked Warlord 500 Friendly Fire -1058 Cogmind --------- Core Integrity 0/1300 Matter 283/300 Energy 146/170 System Corruption 14% Temperature Cool (0) Movement Walking (120) Location -3/Research Parts ------- > --- POWER (2) -------- Light Antimatter Reactor > --- PROPULSION (6) --- Flexi-carbon Leg Flexi-carbon Leg Myomer Leg Myomer Leg > --- UTILITY (9) ------ Advanced Heat Sink Large Storage Unit Advanced Target Analyzer Advanced Target Analyzer Armor Integrity Analyzer Advanced Recalibrator > --- WEAPON (4) ------- Backup Laser VII Backup Laser VII > --- INVENTORY (15) --- YI-UF0's Bottomless Matter Pit (1500) Peak State ------------ > --- POWER ------------ Particle Reactor Particle Reactor > --- PROPULSION ------- Advanced VSS Leg Advanced VSS Leg Advanced Myomer Leg Advanced Myomer Leg Advanced Myomer Leg Advanced Myomer Leg > --- UTILITY ---------- Advanced Heat Sink Large Storage Unit Advanced Target Analyzer Armor Integrity Analyzer Recoil Nullifier Improved Heavy Armor Plating Centrium Light Armor Plating Experimental Thermal Shield > --- WEAPON ----------- Railgun Heavy Autocannon Vortex Lance > --- INVENTORY -------- Antimatter Reactor Advanced Heavy Treads Myomer Leg Advanced VSS Leg Advanced VSS Leg Advanced Myomer Leg Advanced Myomer Leg Advanced Myomer Leg YI-UF0's Bottomless Matter Pit Layered Heavy Armor Plating Advanced Recalibrator Mass Driver Vortex Lance [Rating: 156] Favorites ----------- Power Antimatter Reactor Engine Angular Momentum Engine Power Core Light Nuclear Core Reactor Antimatter Reactor Propulsion Flexi-carbon Leg Treads Heavy Siege Treads Leg Flexi-carbon Leg Wheel Armored Huge Wheel Hover Unit Improved Linear Gravjet Flight Unit Q-thruster Utility Large Storage Unit Device Advanced Heat Sink Storage Large Storage Unit Processor Armor Integrity Analyzer Hackware System Shield Protection Layered Heavy Armor Plating Weapon Hardcell Cannon Energy Gun Phase Gun Ballistic Gun Heavy Machine Gun Ballistic Cannon Hardcell Cannon Launcher Rocket Launcher Impact Weapon Powered Hammer Slashing Weapon Makeshift Axe Piercing Weapon Vortex Lance Special Melee Weapon Dirty Datajack Build | -11 -10 -10 -10 -9 -8 -7 -6 -5 -5 -4 -4 -4 -3 -3 ------- Run | Jun Mat Min Exi Min Mat Fac Fac Fac DSF Fac Upp War Pro Res Slots Evolved 14 | . . . . . 4 2 2 2 . 2 . . . 2 Power 1 | . . . . . . . . . . 1 . . . . Propulsion 4 | . . . . . 2 . . 1 . 1 . . . . Utility 7 | . . . . . 2 1 2 1 . . . . . 1 Weapon 2 | . . . . . . 1 . . . . . . . 1 Parts Attached 310 | 7 4 2 3 6 17 11 34 2 25 66 4 22 12 95 Power 42 | 1 . . . 1 1 3 3 . 1 15 . 3 . 14 Engine 10 | 1 . . . 1 . . 3 . 1 4 . . . . Core 12 | . . . . . 1 3 . . . 7 . 1 . . Reactor 20 | . . . . . . . . . . 4 . 2 . 14 Propulsion 78 | 2 . . . 2 7 2 1 . 6 16 . 6 3 33 Treads 12 | . . . . 2 2 . . . 1 . . . . 7 Leg 41 | . . . . . 2 . . . . 10 . 6 3 20 Wheel 8 | 2 . . . . 3 2 1 . . . . . . . Hover 16 | . . . . . . . . . 5 6 . . . 5 Flight 1 | . . . . . . . . . . . . . . 1 Utility 105 | 1 2 . 2 2 7 3 26 2 8 15 . 8 7 22 Device 50 | . . . 1 . 3 2 11 1 2 11 . 2 3 14 Storage 5 | 1 . . . 1 . 1 . . 1 . . . . 1 Processor 11 | . . . . . . . 4 . 1 1 . 1 . 4 Hackware 2 | . . . . . 1 . 1 . . . . . . . Protection 37 | . 2 . 1 1 3 . 10 1 4 3 . 5 4 3 Artifact . | . . . . . . . . . . . . . . . Weapon 85 | 3 2 2 1 1 2 3 4 . 10 20 4 5 2 26 Energy Gun 17 | 1 1 . . . 1 . . . . 3 . . . 11 Energy Cannon . | . . . . . . . . . . . . . . . Ballistic Gun 10 | 2 1 1 . . . . . . . . . . . 6 Ballistic Cannon 35 | . . . . . 1 3 2 . 9 9 2 3 2 4 Launcher 7 | . . 1 . 1 . . 2 . 1 2 . . . . Special Weapon . | . . . . . . . . . . . . . . . Impact Weapon 1 | . . . . . . . . . . . . . . 1 Slashing Weapon 6 | . . . 1 . . . . . . 5 . . . . Piercing Weapon 7 | . . . . . . . . . . 1 2 . . 4 Special Melee Weapon 2 | . . . . . . . . . . . . 2 . . Unidentified Prototypes 12 | . . . 1 1 . 1 2 . . . . 2 . 5 Parts Lost 125 | . . 1 . . 3 . 2 . 15 28 1 . 11 64 Power 15 | . . . . . . . . . 1 4 . . 1 9 Propulsion 33 | . . . . . . . . . 1 9 . . 3 20 Utility 44 | . . . . . 2 . 2 . 7 9 1 . 5 18 Weapon 33 | . . 1 . . 1 . . . 6 6 . . 2 17 Highest Loss Streak 19 | . . 1 . . 2 . 1 . 7 15 1 . 6 19 To Critical Strikes 1 | . . . . . . . . . . . . . . 1 Average Slot Usage (%) 84 | . 98 100 100 98 80 73 79 71 76 84 93 92 84 79 Engine 3 | . 14 14 14 14 8 . 5 5 4 2 . . . . Reactor 4 | . . . . . . . . . . 3 10 10 6 7 Leg 13 | . . . . . . . . . . 16 31 31 31 18 Wheel 7 | . 28 28 28 7 13 14 13 11 4 . . . . . Hover 1 | . . . . . . . . . 11 10 . . . 1 Device 10 | . . . . . 1 14 16 11 4 10 15 11 6 10 Storage 6 | . 14 14 14 17 9 7 6 5 5 5 5 5 5 3 Processor 9 | . . . . . . . 12 17 22 13 10 10 10 14 Hackware 1 | . . . . . 8 7 1 . . . . . . . Protection 7 | . 12 14 14 8 14 7 7 6 6 4 4 8 12 4 Energy Gun 1 | . 14 3 . . 2 . . . . 3 . . . 4 Ballistic Gun 2 | . 14 21 21 . . . . . . . . . . 2 Ballistic Cannon 6 | . . . . . 3 5 7 11 11 6 11 13 9 4 Launcher 1 | . . 3 . 14 2 . 4 . . . . . . . Slashing Weapon 1 | . . . 6 14 9 7 . . . 2 . . . . Naked Turns . | . . . . . . . . . . . . . . . Heaviest Build 137 | 13 14 16 15 29 32 53 64 58 69 114 104 128 120 137 Greatest Support 210 | 26 26 26 26 40 80 56 68 56 62 147 130 133 133 210 Greatest Overweight (x) 3 | 3 . . . . . . 1 1 2 1 . . . 1 Average Overweight (x) . | . . . . . . . . . . . . . . . Largest Inventory Capacity 15 | 8 8 8 8 8 8 15 15 15 15 15 15 15 15 15 Average Capacity 13 | 7 8 8 8 8 8 12 15 15 15 15 15 15 15 12 Most Carried 15 | 6 8 8 8 8 8 15 15 15 15 15 15 15 15 15 Average Carried 11 | 3 7 7 8 7 7 11 14 15 11 13 14 14 10 7 Final Capacity 15 | 8 8 8 8 8 8 15 15 15 15 15 15 15 15 15 Final Carried 15 | 6 8 8 8 8 8 15 15 15 15 15 15 15 6 1 Class Distribution -------------------- 40% | Mutant 28% | Scavenger-Mutant 16% | Scavenger-Gunner 5% | Scavenger-Tank 5% | Gunner Dominant Class ---------------- Mutant | -10/Materials Mutant | -10/Mines Mutant | -10/Exiles Mutant | -9/Mines Mutant | -8/Materials Mutant | -7/Factory Mutant | -6/Factory Gunner | -5/Factory Gunner | -5/DSF Scavenger-Mutant | -4/Factory Scavenger-Mutant | -4/Upper Caves Scavenger-Gunner | -4/Warlord Scavenger-Mutant | -3/Proximity Caves Scavenger-Mutant | -3/Research Resources | -11 -10 -10 -10 -9 -8 -7 -6 -5 -5 -4 -4 -4 -3 -3 ----------- Run | Jun Mat Min Exi Min Mat Fac Fac Fac DSF Fac Upp War Pro Res Matter Collected 11811 | 195 114 73 . 125 613 284 1430 . 896 1289 555 1324 852 4061 Remotely 955 | . . . . . . . . . . . . . . 955 Salvage Created 9268 | . 50 44 . 104 516 221 1288 . 632 1365 264 . 495 4289 Parts 387 | . 5 5 . 4 25 13 74 . 20 59 9 . 11 162 Haulers Intercepted 3 | . . . . . 1 . . . 1 . . . . 1 Recyclers Shooed 10 | . . . . . 1 . 3 1 . 2 . . . 3 Parts Field Recycled . | . . . . . . . . . . . . . . . Retrieved Matter . | . . . . . . . . . . . . . . . Parts Self-Destructed 27 | . . . . . . . . . . . 9 . 18 . Prevented 1 | . . . . . . . . . . . . . 1 . Kills | -11 -10 -10 -10 -9 -8 -7 -6 -5 -5 -4 -4 -4 -3 -3 ------- Run | Jun Mat Min Exi Min Mat Fac Fac Fac DSF Fac Upp War Pro Res Combat Hostiles Destroyed 184 | . 3 6 . . 8 5 30 . 16 31 13 . 13 59 Melee 43 | . . . . . 8 3 . . . 13 3 . . 16 Guns 34 | . 3 4 . . . . . . . . . . . 27 Cannons 80 | . . . . . . 2 18 . 14 10 10 . 13 13 AOE 24 | . . 2 . . . . 12 . 2 8 . . . . Classes Destroyed 22 | . 1 . . . 4 3 8 . 1 . 2 . . 3 Worker 7 | . . . . . . . 5 . . 1 . . . 1 Builder 6 | . . . . . . . 1 . . 4 . . . 1 Tunneler 5 | . . . . . . 1 . . . 1 . . . 3 Hauler 3 | . . . . . 1 . . . 1 . . . . 1 Recycler 9 | . . . . . 1 . 1 . . . . . . 7 Mechanic 2 | . . . . . . . 2 . . . . . . . Operator 1 | . . . . . . . . . . . . . . 1 Watcher 5 | . . . . . . 1 3 . . . . . . 1 Swarmer 42 | . 3 6 . . . . 8 . . 4 6 . 4 11 Cutter 3 | . . . . . . . 3 . . . . . . . Grunt 62 | . . . . . 7 4 8 . 9 12 . . 2 20 Brawler 7 | . . . . . . . 3 . . . . . 2 2 Duelist 5 | . . . . . . . 2 . . . . . 2 1 Protector 1 | . . . . . . . . . . . . . . 1 Sentry 12 | . . . . . 1 . 2 . . 2 1 . 1 5 Specialist 4 | . . . . . . . . . 4 . . . . . Hunter 14 | . . . . . . . 1 . 2 6 . . 1 4 Programmer 26 | . . . . . . 1 4 . . 6 . . 1 14 Heavy 3 | . . . . . . . 1 . 1 1 . . . . Behemoth 1 | . . . . . . . . . . . . . . 1 Samaritan 2 | . . . . . . . . . . . 2 . . . Assembled 6 | . . . . . . . . . . . 6 . . . Best Kill Streak 14 | . 3 6 . . 4 2 7 . 6 14 4 . 3 10 Combat Bots Only 9 | . 3 6 . . 4 2 5 . 6 9 4 . 3 8 Max Kills in Single Turn 4 | . 2 2 . 1 1 1 4 . 1 2 1 . 1 1 Gunslinging 1 | . 1 1 . . . . . . . . . . . . Exploded 3 | . . 1 . . . . 3 . 1 2 . . . . Melee 1 | . . . . . 1 1 . . . 1 1 . . 1 Uniques/NPCs Destroyed 1 | . . . . 1 . . . . . . . . . . YI-UF0 (-9/Mines) Combat | -11 -10 -10 -10 -9 -8 -7 -6 -5 -5 -4 -4 -4 -3 -3 -------- Run | Jun Mat Min Exi Min Mat Fac Fac Fac DSF Fac Upp War Pro Res Damage Taken 27735 | . 30 190 . . 919 229 1503 . 2775 5777 935 56 2739 12582 Core 2910 | . 11 41 . . 246 30 135 . 349 651 54 . 87 1306 Absorbed by Shields 86 | . . . . . . . . . 19 . . . . 67 Reduced by Siege Mode 792 | . . . . . . . . . . . . . . 792 Redirected to Shielding 433 | . 2 6 . . 94 . . . 210 . . 10 95 16 Regen/Repaired (Parts) 839 | . . . . . . 432 97 . . . . 310 . . Core Remaining (%) 72 | 100 . . . 79 55 95 84 . 65 . . . 31 . Volleys Fired 494 | . 5 8 . . 2 10 62 1 52 60 29 . 53 212 Largest 4 | . 2 2 . . 1 1 2 2 3 3 3 . 2 4 Hottest 312 | . 60 40 . . 50 60 108 108 171 179 179 . 155 312 Shots Fired 874 | . 10 12 . . 2 10 80 2 85 104 37 . 89 443 Gun 363 | . 10 10 . . 1 . . . . 8 . . . 334 Cannon 492 | . . . . . 1 10 73 2 81 90 37 . 89 109 Launcher 19 | . . 2 . . . . 7 . 4 6 . . . . Special . | . . . . . . . . . . . . . . . Kinetic 659 | . 5 10 . . 1 10 73 2 81 90 37 . 89 261 Thermal 172 | . 5 . . . 1 . . . . 8 . . . 158 Explosive 19 | . . 2 . . . . 7 . 4 6 . . . . Electromagnetic 24 | . . . . . . . . . . . . . . 24 Robot Hit Streak 32 | . 4 4 . . 1 10 8 2 22 8 6 . 8 32 Robot Miss Streak 6 | . 4 3 . . 1 1 4 1 3 3 4 . 6 6 Penetration Max 1 | . . . . . . . 1 . . 1 . . . 1 Secondary Targets 9 | . 1 1 . . . . . . . . . . . 7 Max Gunslinging Chain 1 | . 1 1 . . . . . . . . . . . 1 Shots Hit Robots 711 | . 5 7 . 1 31 18 49 1 68 108 27 . 50 346 Core Hits 372 | . 3 10 . 1 10 6 52 . 36 70 13 . 20 151 Critical Kills 9 | . . . . . . . . . . . . . . 9 Critical Parts Destroyed 13 | . . . . . . . . . . . . . . 13 Critical Strikes 93 | . . . . . 1 . 7 . 5 21 4 . 5 50 Burn 9 | . . . . . . . . . . . . . . 9 Destroy 21 | . . . . . . . . . . . . . . 21 Blast 46 | . . . . . . . 7 . 5 14 4 . 5 11 Smash 1 | . . . . . . . . . . . . . . 1 Sever 6 | . . . . . 1 . . . . 5 . . . . Impale 2 | . . . . . . . . . . 2 . . . . Sunder 8 | . . . . . . . . . . . . . . 8 Melee Attacks 177 | . . . . 1 41 10 . . . 59 14 . . 52 Impact 9 | . . . . . . . . . . . . . . 9 Slashing 105 | . . . . 1 41 10 . . . 53 . . . . Piercing 20 | . . . . . . . . . . 6 14 . . . Entropic 43 | . . . . . . . . . . . . . . 43 Sneak Attacks 12 | . . . . 1 2 2 . . . 2 3 . . 2 Combat Hostiles . | . . . . . . . . . . . . . . . Follow-up Attacks 3 | . . . . . . . . . . . . . . 3 Damage Inflicted 31262 | . 60 231 . 72 1146 798 4129 32 2629 5538 1131 . 2582 12914 Guns 5888 | . 60 76 . . . . . . . 79 . . . 5673 Cannons 14971 | . . . . . 23 367 2765 32 2061 2208 708 . 2582 4225 Explosions 3836 | . . 155 . . . . 1364 . 568 1749 . . . . Melee 6566 | . . . . 72 1123 431 . . . 1502 423 . . 3015 Ramming 1 | . . . . . . . . . . . . . . 1 Kinetic 17579 | . 37 76 . . 23 367 2765 32 2061 2208 708 . 2582 6720 Thermal 3325 | . 23 . . . . . 553 . . 79 . . . 2670 Explosive 3283 | . . 155 . . . . 811 . 568 1749 . . . . Electromagnetic 508 | . . . . . . . . . . . . . . 508 Impact 198 | . . . . . . . . . . . . . . 198 Slashing 2954 | . . . . 72 1123 431 . . . 1328 . . . . Piercing 597 | . . . . . . . . . . 174 423 . . . Entropic 2817 | . . . . . . . . . . . . . . 2817 Highest Corruption 14 | . . . . . 2 . . . 2 6 6 6 . 14 Average Corruption 5 | . . . . . 1 . . . 1 4 6 6 . 6 Corruption Purged 2 | . . . . . 2 . . . . . . . . . Corruption Blocked 7 | . . . . . . . . . . . . . . 7 Effects 80 | . . . . . 4 . . . 7 25 17 1 . 26 Message Errors 18 | . . . . . 1 . . . 1 8 3 . . 5 Matter Fused 19 | . . . . . . . . . 2 5 4 . . 8 Heat Flow Errors 7 | . . . . . 2 . . . . 2 1 . . 2 Energy Discharges 9 | . . . . . . . . . . 2 3 1 . 3 Parts Rejected 4 | . . . . . . . . . . 4 . . . . Data Loss (minor) 6 | . . . . . . . . . . 2 2 . . 2 Data Loss (major) 4 | . . . . . 1 . . . . . 2 . . 1 Misfires 1 | . . . . . . . . . . . 1 . . . Alerts 2 | . . . . . . . . . 2 . . . . . Weapon Failures 10 | . . . . . . . . . 2 2 1 . . 5 Overload Shots . | . . . . . . . . . . . . . . . Overflow Damage 1584 | . . 7 . . 96 155 266 2 30 201 197 . 136 494 Projectiles 656 | . . . . . . 38 234 2 16 85 56 . 136 89 Explosions 76 | . . 7 . . . . 32 . 14 23 . . . . Melee 852 | . . . . . 96 117 . . . 93 141 . . 405 Knockbacks 74 | . . . . . . 3 11 . 10 24 3 . 17 6 Impact 2 | . . . . . . . . . . . . . . 2 Kinetic 68 | . . . . . . 3 11 . 9 22 3 . 16 4 Secondary 4 | . . . . . . . . . 1 2 . . 1 . Self-Inflicted Damage 215 | . . . . . . . 31 . 117 67 . . . . Shots 6 | . . . . . . . 1 . 4 1 . . . . Rammed 1 | . . . . . . . . . . . . . . 1 Targets Rammed 1 | . . . . . . . . . . . . . . 1 Kicked . | . . . . . . . . . . . . . . . Crushed . | . . . . . . . . . . . . . . . Highest Temperature 475 | . . . . . 179 108 199 21 309 475 300 10 327 423 Average Temperature 89 | . . . . . 81 39 59 14 102 106 118 5 99 108 Received Heat Transfer 4039 | . . . . . 285 126 213 . 388 822 21 9 333 1842 Effects 8 | . . . . . . . . . . 3 3 . . 2 Shutdowns 2 | . . . . . . . . . . 1 . . . 1 Energy Bleed 3 | . . . . . . . . . . 1 2 . . . Interference 3 | . . . . . . . . . . 1 1 . . 1 Siege Activations 1 | . . . . . . . . . . . . . . 1 Total Turns 47 | . . . . . . . . . . . . . . 47 Longest Duration 47 | . . . . . . . . . . . . . . 47 Robots Corrupted 1 | . . . . . . . . . . . . . . 1 Combat Hostiles 1 | . . . . . . . . . . . . . . 1 Parts Fried 1 | . . . . . . . . . . . . . . 1 Impact Corruptions 4 | . . . . . . . . . . . . . 2 2 Robots Melted . | . . . . . . . . . . . . . . . Combat Hostiles . | . . . . . . . . . . . . . . . Parts Melted 7 | . . . . . . . . . . . . . . 7 Heat Transferred 5062 | . 50 . . . . . 400 . . 174 . . . 4438 Parts Sabotaged . | . . . . . . . . . . . . . . . Parts Stolen . | . . . . . . . . . . . . . . . Parts Stripped . | . . . . . . . . . . . . . . . Power Chain Reactions . | . . . . . . . . . . . . . . . Missiles Intercepted . | . . . . . . . . . . . . . . . Alert | -11 -10 -10 -10 -9 -8 -7 -6 -5 -5 -4 -4 -4 -3 -3 ------- Run | Jun Mat Min Exi Min Mat Fac Fac Fac DSF Fac Upp War Pro Res Peak Influence 1181 | . 119 201 . . 216 436 952 468 619 993 . . . 1181 Initial 951 | . . 46 . . . 49 133 466 331 324 . . . 951 Average 546 | . 70 119 . . 91 261 460 466 467 764 . . . 886 Maximum Alert Level 4 | . . 1 . . 1 2 3 2 2 3 . . . 4 Low Security (%) 18 | 100 100 56 . 100 95 17 10 . . . . . . . Level 1 24 | . . 43 . . 4 69 48 . 34 12 . . . . Level 2 14 | . . . . . . 13 19 100 65 18 . . . 5 Level 3 40 | . . . . . . . 20 . . 69 . . . 88 Level 4 1 | . . . . . . . . . . . . . . 6 Level 5 . | . . . . . . . . . . . . . . . High Security . | . . . . . . . . . . . . . . . Max Security . | . . . . . . . . . . . . . . . Sterilizations 1 | . . . . . . . . . 1 . . . . . Squads Dispatched 39 | . . . . . 2 4 9 1 2 8 . . 1 12 Investigation 4 | . . . . . . 1 1 1 . 1 . . . . Extermination 9 | . . . . . . . 3 . . 2 . . . 4 Reinforcement 17 | . . . . . 2 2 4 . 2 4 . . . 3 Assault 6 | . . . . . . 1 1 . . 1 . . 1 2 Garrison 3 | . . . . . . . . . . . . . . 3 Intercept . | . . . . . . . . . . . . . . . Searches Triggered 4 | . . . . . . . . . . . . . . 4 Construction Impeded 1 | . . . . . . . . . . 1 . . . . Haulers Reinforced 4 | . . . . . . . . . . 2 . . . 2 Active Scanning Responses . | . . . . . . . . . . . . . . . Cargo Convoy Interrupts . | . . . . . . . . . . . . . . . Stealth | -11 -10 -10 -10 -9 -8 -7 -6 -5 -5 -4 -4 -4 -3 -3 --------- Run | Jun Mat Min Exi Min Mat Fac Fac Fac DSF Fac Upp War Pro Res Distress Signals 9 | . 1 . . . . . 1 . . 3 . . 1 3 Communications Jammed . | . . . . . . . . . . . . . . . Distress Signals . | . . . . . . . . . . . . . . . Times Spotted 302 | . 7 6 . . 14 11 45 . 18 50 17 15 29 90 Peak Tracking Total 10 | . 3 4 . . 4 4 5 . 8 9 7 10 9 8 Tactical Retreats 30 | . . . . . 3 . . . . 12 1 . 3 11 Traps | -11 -10 -10 -10 -9 -8 -7 -6 -5 -5 -4 -4 -4 -3 -3 ------- Run | Jun Mat Min Exi Min Mat Fac Fac Fac DSF Fac Upp War Pro Res Traps Triggered 8 | . . . . . 1 1 1 1 2 2 . . . . Indirectly . | . . . . . . . . . . . . . . . Trap Hack Attempts . | . . . . . . . . . . . . . . . Triggered . | . . . . . . . . . . . . . . . Disarmed . | . . . . . . . . . . . . . . . Reprogrammed . | . . . . . . . . . . . . . . . Reused . | . . . . . . . . . . . . . . . Traps Extracted . | . . . . . . . . . . . . . . . Installed . | . . . . . . . . . . . . . . . Triggered 11 | . . . . . . . . . . . . 11 . . Machines | -11 -10 -10 -10 -9 -8 -7 -6 -5 -5 -4 -4 -4 -3 -3 ---------- Run | Jun Mat Min Exi Min Mat Fac Fac Fac DSF Fac Upp War Pro Res Machines Disabled 25 | . . . . . . 4 15 . 1 2 . . . 3 Max in Single Turn 11 | . . . . . . 1 11 . 1 1 . . . 1 Garrison Access 2 | . . . . . 1 1 . . . . . . . . Machines Repaired . | . . . . . . . . . . . . . . . Machines Sabotaged . | . . . . . . . . . . . . . . . Overloaded Fab Kills . | . . . . . . . . . . . . . . . Hacking | -11 -10 -10 -10 -9 -8 -7 -6 -5 -5 -4 -4 -4 -3 -3 --------- Run | Jun Mat Min Exi Min Mat Fac Fac Fac DSF Fac Upp War Pro Res Machines Accessed 36 | . 4 . 2 . 2 10 8 1 . 1 . 1 . 7 Terminals 14 | . 4 . . . 1 2 2 1 . . . . . 4 Fabricators 8 | . . . . . . 4 4 . . . . . . . Repair Stations 4 | . . . . . . 2 1 . . . . . . 1 Recycling Units . | . . . . . . . . . . . . . . . Scanalyzers 3 | . . . . . . 1 1 . . . . . . 1 Garrison Access 4 | . . . . . 1 1 . . . 1 . . . 1 Total Hacks 82 | . 9 . 2 . 5 30 19 2 . 2 . 1 . 12 Successful 36 | . 4 . 2 . 2 15 9 1 . . . 1 . 2 Failed 46 | . 5 . . . 3 15 10 1 . 2 . . . 10 Catastrophic 11 | . . . . . 1 3 3 . . 2 . . . 2 Database Lockouts . | . . . . . . . . . . . . . . . Manual 20 | . 3 . 1 . 1 11 2 . . . . . . 2 Terminals 27 | . 9 . . . 4 2 4 2 . . . . . 6 Fabricators 19 | . . . . . . 10 9 . . . . . . . Repair Stations 17 | . . . . . . 12 3 . . . . . . 2 Recycling Units . | . . . . . . . . . . . . . . . Scanalyzers 8 | . . . . . . 3 3 . . . . . . 2 Garrison Access 8 | . . . . . 1 3 . . . 2 . . . 2 Terminal Hacks 8 | . 3 . 2 . . . . 1 . . . 1 . 1 Record 1 | . . . 1 . . . . . . . . . . . Part Schematic 1 | . . . . . . . . . . . . . . 1 Prototype ID Bank 2 | . 2 . . . . . . . . . . . . . Open Door 1 | . . . . . . . . . . . . 1 . . Open DSF 1 | . . . . . . . . 1 . . . . . . Zone Layout 1 | . 1 . . . . . . . . . . . . . EX-Prototype ID Bank 1 | . . . 1 . . . . . . . . . . . Fabricator Hacks 6 | . . . . . . 2 4 . . . . . . . Network Status 1 | . . . . . . 1 . . . . . . . . Load Schematic 1 | . . . . . . . 1 . . . . . . . Build 4 | . . . . . . 1 3 . . . . . . . Repair Station Hacks 10 | . . . . . . 7 2 . . . . . . 1 Scan Component 6 | . . . . . . 4 1 . . . . . . 1 Repair 4 | . . . . . . 3 1 . . . . . . . Recycling Unit Hacks . | . . . . . . . . . . . . . . . Scanalyzer 4 | . . . . . . 2 2 . . . . . . . Insert Component 2 | . . . . . . 1 1 . . . . . . . Analyze 2 | . . . . . . 1 1 . . . . . . . Garrison Access Hacks 1 | . . . . . 1 . . . . . . . . . Seal Access 1 | . . . . . 1 . . . . . . . . . Unauthorized Hacks 7 | . 1 . . . 1 4 1 . . . . . . . Terminals 2 | . 1 . . . 1 . . . . . . . . . Botnet 2 | . 1 . . . 1 . . . . . . . . . Fabricators 5 | . . . . . . 4 1 . . . . . . . Report 1 | . . . . . . 1 . . . . . . . . Fabnet 3 | . . . . . . 2 1 . . . . . . . Haulers 1 | . . . . . . 1 . . . . . . . . Repair Stations . | . . . . . . . . . . . . . . . Recycling Units . | . . . . . . . . . . . . . . . Scanalyzers . | . . . . . . . . . . . . . . . Garrison Access . | . . . . . . . . . . . . . . . Data Cores Recovered . | . . . . . . . . . . . . . . . Used . | . . . . . . . . . . . . . . . Hacking Detections 29 | . 4 . . . 1 9 6 1 . 1 . . . 7 Full Trace Events 2 | . . . . . . . 1 . . 1 . . . . Feedback Events 1 | . . . . . . . . . . 1 . . . . Corruption 1 | . . . . . . . . . . 1 . . . . Feedback Blocked . | . . . . . . . . . . . . . . . Robot Schematics Acquired . | . . . . . . . . . . . . . . . Robots Built 3 | . . . . . . . 3 . . . . . . . Authchips . | . . . . . . . . . . . . . . . Time 134 | . . . . . . . 134 . . . . . . . Total Robot Build Rating 12 | . . . . . . . 12 . . . . . . . Part Schematics Acquired 3 | . . . . . . 1 1 . . . . . . 1 Parts Built 6 | . . . . . . 2 4 . . . . . . . Authchips . | . . . . . . . . . . . . . . . Time 212 | . . . . . . 53 159 . . . . . . . Total Part Build Rating 38 | . . . . . . 12 26 . . . . . . . Parts Repaired 4 | . . . . . . 3 1 . . . . . . . Time 160 | . . . . . . 141 19 . . . . . . . Parts Recycled . | . . . . . . . . . . . . . . . Recycled Matter . | . . . . . . . . . . . . . . . Retrieved Matter . | . . . . . . . . . . . . . . . Retrieved Components . | . . . . . . . . . . . . . . . Parts Scanalyzed 2 | . . . . . . 1 1 . . . . . . . Part Schematics Acquired 2 | . . . . . . 1 1 . . . . . . . Parts Damaged . | . . . . . . . . . . . . . . . Bothacking | -11 -10 -10 -10 -9 -8 -7 -6 -5 -5 -4 -4 -4 -3 -3 ------------ Run | Jun Mat Min Exi Min Mat Fac Fac Fac DSF Fac Upp War Pro Res Used RIF Installer . | . . . . . . . . . . . . . . . Robots Hacked 4 | . . . . . . . 3 . . 1 . . . . Non-combat . | . . . . . . . . . . . . . . . Combat 4 | . . . . . . . 3 . . 1 . . . . Robot Hacks Applied . | . . . . . . . . . . . . . . . Relay Couplers Released 1 | . . . . . . 1 . . . . . . . . Machine Destruction 1 | . . . . . . 1 . . . . . . . . Fabnet Peak Effective % 6 | . . . . . . . 6 5 5 1 1 1 . . Autooverrided 4 | . . . . . . . 3 . . 1 . . . . Robots Rewired 8 | . . . 3 . . . . . . . . 5 . . Allies Hacked . | . . . . . . . . . . . . . . . Hacks Repelled . | . . . . . . . . . . . . . . . Allies | -11 -10 -10 -10 -9 -8 -7 -6 -5 -5 -4 -4 -4 -3 -3 -------- Run | Jun Mat Min Exi Min Mat Fac Fac Fac DSF Fac Upp War Pro Res Total Allies 15 | . . . 3 . . . 6 . . 1 . 5 . . Largest Group 5 | . . . 3 3 3 . 4 . . 1 . 5 3 . Highest-Rated Group 260 | . . . 24 24 24 . 102 . . 137 . 260 161 . Highest-Rated Ally 137 | . . . 8 8 8 . 32 . . 137 . 56 56 . Total Orders 2 | . . . . . . . 2 . . . . . . . EXPLORE 2 | . . . . . . . 2 . . . . . . . Ally Attacks 101 | . . . . . 27 . 21 . . 4 . 30 19 . Total Damage 2402 | . . . . . 209 . 382 . . 304 . 1095 412 . Kills 15 | . . . . . 2 . 3 . . 1 . 5 4 . Allies Corrupted 1 | . . . . . . . . . . . . . 1 . Allies Melted 2 | . . . . . . . . . . . . 2 . . Intel | -11 -10 -10 -10 -9 -8 -7 -6 -5 -5 -4 -4 -4 -3 -3 ------- Run | Jun Mat Min Exi Min Mat Fac Fac Fac DSF Fac Upp War Pro Res Robot Analysis Total . | . . . . . . . . . . . . . . . Derelict Logs Recovered 1 | . . 1 . . . . . . . . . . . . Drone Launches 2 | . . . . . . . 2 . . . . . . . Drone Recoveries 1 | . . . . . . . 1 . . . . . . . Exploration | -11 -10 -10 -10 -9 -8 -7 -6 -5 -5 -4 -4 -4 -3 -3 ------------- Run | Jun Mat Min Exi Min Mat Fac Fac Fac DSF Fac Upp War Pro Res Turns Passed 9876 | 54 196 240 489 87 501 778 1714 64 346 1045 485 1445 456 1976 Spaces Moved 6707 | 40 190 240 517 52 312 659 1277 56 167 661 310 1093 268 865 Core 4 | 4 . . . . . . . . . . . . . . Treads 257 | . . . . 35 67 . . . . . . . . 155 Legs 2724 | . . . . . . . . . . 343 310 1093 268 710 Wheels 3314 | 36 190 240 517 17 245 659 1277 56 77 . . . . . Hover 408 | . . . . . . . . . 90 318 . . . . Flight . | . . . . . . . . . . . . . . . Fastest Speed 24 | 50 90 90 90 90 100 100 100 100 24 26 120 115 100 100 Average Speed 107 | 92 90 90 90 137 112 100 112 103 98 85 120 119 106 119 Slowest Speed 240 | 200 90 90 90 160 160 100 115 115 200 190 120 120 115 240 Overloaded Moves . | . . . . . . . . . . . . . . . Propulsion Burnouts . | . . . . . . . . . . . . . . . Robots Hopped . | . . . . . . . . . . . . . . . Cave-ins Triggered . | . . . . . . . . . . . . . . . Exploration Rate (%) 41 | 3 34 40 91 17 28 20 59 3 96 22 38 93 46 26 Regions Visited 14 Branch Regions 6 Pre-discovered Areas 2 | . . . 1 . . . . . . . 1 . . . Known Exits Taken 2 | . . . . . 1 . . 1 . . . . . . Unknown Exits Taken 11 | 1 1 1 1 1 . 1 1 . . 1 1 1 1 . Scrap Searched 6 | . . 1 . 1 . . . . . . 3 . 1 . Spaces Dug 20 | . . . . . . . . . 9 9 . . . 2 Terrain Destroyed 360 | . . 10 . . . 2 133 1 31 92 23 . 35 33 Melee . | . . . . . . . . . . . . . . . Projectile 162 | . . . . . . 2 28 1 14 26 23 . 35 33 AOE 198 | . . 10 . . . . 105 . 17 66 . . . . Terrain Rammed . | . . . . . . . . . . . . . . . Walls Destroyed . | . . . . . . . . . . . . . . . Machines Disabled . | . . . . . . . . . . . . . . . Actions | -11 -10 -10 -10 -9 -8 -7 -6 -5 -5 -4 -4 -4 -3 -3 --------- Run | Jun Mat Min Exi Min Mat Fac Fac Fac DSF Fac Upp War Pro Res Total 8367 | 53 203 252 541 67 420 759 1445 59 265 983 368 1239 347 1366 Wait 389 | 2 2 1 5 . 28 45 34 . 3 80 8 72 11 98 Move 6693 | 39 189 239 516 51 311 658 1276 55 166 660 309 1092 267 865 Hop . | . . . . . . . . . . . . . . . Pick Up 111 | 5 1 1 1 2 6 14 15 . 12 22 2 8 2 20 Fast Attach 149 | 6 3 1 3 4 12 5 6 2 11 27 . 11 2 56 Attach 77 | . . 1 . . 5 3 6 . 11 25 . 1 8 17 Detach 8 | . . . . 1 . 1 1 . . 4 . . . 1 Swap 84 | 1 1 . . 2 . 3 22 . 3 14 4 10 2 22 Drop 151 | . 2 1 4 6 15 10 23 1 7 27 2 24 2 27 Fire 494 | . 5 8 . . 2 10 62 1 52 60 29 . 53 212 Melee 172 | . . . . 1 41 10 . . . 59 14 . . 47 Ram . | . . . . . . . . . . . . . . . Kick . | . . . . . . . . . . . . . . . Crush 1 | . . . . . . . . . . . . . . 1 Escape Stasis 5 | . . . . . . . . . . 5 . . . . Rewire 33 | . . . 12 . . . . . . . . 21 . . Trap . | . . . . . . . . . . . . . . . Miscellaneous . | . . . . . . . . . . . . . . . Route ------- -11/Junkyard -10/Materials -10/Mines (discovered 2 exits: [*Mat] / *Exi) -10/Exiles -9/Mines -8/Materials (discovered 2 exits: *Fac x2) -7/Factory -6/Factory (discovered 2 exits: *Fac x2) -5/Factory -5/DSF -4/Factory -4/Upper Caves -4/Warlord -3/Proximity Caves -3/Research History --------- Turn | Location | Event 2 | -11/Junkyard | Met Revision 17 26 | -11/Junkyard | Discovered new exit (range 15) 55 | -11/Junkyard | Entered Materials 223 | -10/Materials | Discovered new exit (range 11) 251 | -10/Materials | Entered Mines 257 | -10/Mines | Learned 4 Materials zone layouts 309 | -10/Mines | Build established: Mutant 402 | -10/Mines | Discovered new exit (range 5) 487 | -10/Mines | Deemed a non-threat by the Exiles lab entrance 487 | -10/Mines | Discovered new exit (range 5) 491 | -10/Mines | Entered Exiles 491 | -10/Exiles | Found Exiles lab destroyed 593 | -10/Exiles | Learned location of Zion (-6) 639 | -10/Exiles | Opened EX-Vault 644 | -10/Exiles | Found Prototype Device 644 | -10/Exiles | Identified Supersonic Drone Bay 963 | -10/Exiles | Discovered new exit (range 14) 980 | -10/Exiles | Entered Mines 980 | -9/Mines | Accompanied by 3 allies 985 | -9/Mines | YI-UF0 nonchalantly dropped a Grenade Launcher on the ground 990 | -9/Mines | Destroyed YI-UF0 995 | -9/Mines | Found Prototype Storage 995 | -9/Mines | Identified YI-UF0's Bottomless Matter Pit 1057 | -9/Mines | Discovered new exit (range 4) 1067 | -9/Mines | Entered Materials 1067 | -8/Materials | Accompanied by 3 allies 1067 | -8/Materials | Evolved 4 slots: Propulsion x2, Utility x2 1068 | -8/Materials | Identified exit to Factory 1539 | -8/Materials | Discovered exit to Factory (range 15) 1568 | -8/Materials | Entered Factory 1568 | -7/Factory | Evolved 2 slots: Utility x1, Weapon x1 1636 | -7/Factory | Fabricated Imp. Dynamic Insulation System (x2) 2182 | -7/Factory | Repaired Arm. Huge Wheel? 2183 | -7/Factory | Discovered new exit (range 5) 2242 | -7/Factory | Repaired Broken Hvy. Assault Cannon? 2281 | -7/Factory | Repaired Arm. Huge Wheel 2346 | -7/Factory | Entered another Factory area 2346 | -6/Factory | Evolved 2 slots: Utility x2 2367 | -6/Factory | Discovered new exit (range 104) 2597 | -6/Factory | Fabricated Adv. Recalibrator? 2888 | -6/Factory | Found Prototype Processor 2888 | -6/Factory | Identified Exp. Targeting Computer 2891 | -6/Factory | Found Exp. Targeting Computer 2919 | -6/Factory | Found Exp. Targeting Computer 3117 | -6/Factory | Fabricated L-41 Fighter? 3317 | -6/Factory | Fabricated Magnetic Acceleration Cannon? 3486 | -6/Factory | Repaired Hvy. Assault Cannon 3746 | -6/Factory | First assault squad dispatched 4055 | -6/Factory | Discovered new exit (range 5) 4060 | -6/Factory | Build established: Gunner 4060 | -6/Factory | Entered another Factory area 4060 | -5/Factory | Evolved 2 slots: Propulsion x1, Utility x1 4124 | -5/Factory | Identified exit to DSF 4124 | -5/Factory | Entered DSF 4140 | -5/DSF | Additional patrols routed to DSF 4230 | -5/DSF | Lost 7 parts (1n4u2w) 4287 | -5/DSF | Lost 5 parts (1p2u2w) 4367 | -5/DSF | Sterilization system engaged 4387 | -5/DSF | Ambient heat levels rising (+10) 4402 | -5/DSF | Ambient heat levels rising (+10) 4403 | -5/DSF | Discovered new exit (range 16) 4404 | -5/DSF | Lost 3 parts (1u2w) 4417 | -5/DSF | Ambient heat levels rising (+10) 4432 | -5/DSF | Ambient heat levels rising (+10) 4447 | -5/DSF | Ambient heat levels rising (+10) 4462 | -5/DSF | Ambient heat levels rising (+10) 4470 | -5/DSF | Entered Factory 4470 | -4/Factory | Evolved 2 slots: Power x1, Propulsion x1 4633 | -4/Factory | Lost 4 parts (3n1u) 4804 | -4/Factory | Local machine network offline 4830 | -4/Factory | Destroyed 9 combat bots 4834 | -4/Factory | Lost 15 parts (3p4n3u5w) 5117 | -4/Factory | Lost 4 parts (1n2u1w) 5184 | -4/Factory | Build established: Scavenger-Mutant 5210 | -4/Factory | Core integrity fell below 50% 5470 | -4/Factory | First assault squad dispatched 5474 | -4/Factory | Discovered new exit (range 11) 5515 | -4/Factory | Entered Upper Caves 5588 | -4/Upper Caves | Met a Warlord Commander 5589 | -4/Upper Caves | Learned location of Warlord (-4) 5864 | -4/Upper Caves | Attracted the attention of an 0b10 checkpoint 5986 | -4/Upper Caves | A Derelict revealed a hidden shortcut to "reach the base" 6000 | -4/Upper Caves | Entered Warlord 6042 | -4/Warlord | System corruption cleaned by Quarantine Array 6616 | -4/Warlord | Warlord's base attacked by MAIN.C 6631 | -4/Warlord | Met Warlord 6862 | -4/Warlord | Found Prototype Piercing Weapon 6864 | -4/Warlord | Found Prototype Piercing Weapon 6966 | -4/Warlord | Warlord forces counterattacked 6999 | -4/Warlord | Build established: Scavenger-Gunner 7025 | -4/Warlord | Found Prototype Ballistic Cannon 7025 | -4/Warlord | Identified Hvy. Autocannon 7230 | -4/Warlord | Found Hvy. Autocannon 7291 | -4/Warlord | Warlord base infiltrated, sounded retreat 7417 | -4/Warlord | Spotted Executioner 7426 | -4/Warlord | Discovered new exit (range 12) 7445 | -4/Warlord | Entered Proximity Caves 7445 | -3/Proximity Caves | Accompanied by 3 allies 7516 | -3/Proximity Caves | Spotter reported a threat 7528 | -3/Proximity Caves | Spotted B-86 Titan 7603 | -3/Proximity Caves | Attracted the attention of an 0b10 checkpoint 7643 | -3/Proximity Caves | Spotter reported a threat 7696 | -3/Proximity Caves | Spotter reported a threat 7716 | -3/Proximity Caves | Lost 6 parts (1p3n1u1w) 7749 | -3/Proximity Caves | Spotter reported a threat 7787 | -3/Proximity Caves | Attracted the attention of an 0b10 outpost 7802 | -3/Proximity Caves | Spotter reported a threat 7868 | -3/Proximity Caves | Spotter reported a threat 7883 | -3/Proximity Caves | Discovered new exit (range 16) 7901 | -3/Proximity Caves | Entered Research 7901 | -3/Research | Evolved 2 slots: Utility x1, Weapon x1 8090 | -3/Research | Build established: Scavenger-Tank 8151 | -3/Research | Search patrols dispatched 8179 | -3/Research | Found Prototype Device 8179 | -3/Research | Identified Exp. Thermal Shield 8401 | -3/Research | Search patrols dispatched 8461 | -3/Research | Identified Vortex Lance (x2) 8511 | -3/Research | Destroyed 8 combat bots 8526 | -3/Research | Spotted B-86 Titan 8547 | -3/Research | Destroyed B-86 Titan 8651 | -3/Research | Search patrols dispatched 8651 | -3/Research | Lost 7 parts (2p3u2w) 8856 | -3/Research | Spotted B-86 Titan 8901 | -3/Research | Search patrols dispatched 9077 | -3/Research | Lost 19 parts (3p8n3u5w) 9355 | -3/Research | Lost 3 parts (1u2w) 9444 | -3/Research | First assault squad dispatched 9500 | -3/Research | Core integrity fell below 50% 9526 | -3/Research | System corruption reached 10% 9582 | -3/Research | Core integrity fell below 20% 9606 | -3/Research | Lost 15 parts (2p5n3u5w) 9855 | -3/Research | Lost 9 parts (2p3n2u2w) 9877 | -3/Research | Destroyed by G-67 Veteran with Field Laser Last Messages --------------- 09807_ B-74 Champion destroyed. 09819_ Acquired Flexi-carbon Leg. 09824_ Gamma Rifle destroyed. 09827_ G-67 Veteran IFF system glitched. 09841_ System corrupted: Component data lost. 09846_ Melted Plasma Rifle. 09848_ G-67 Veteran heat damages Field Laser, Flexi-carbon Leg, Lgt. Antimatter Reactor, Flexi-carbon Leg. 09848_ G-67 Veteran overheating. 09849_ G-67 Veteran heat short circuits Adv. Heat Sink. 09849_ G-67 Veteran overheating. 09853_ G-67 Veteran destroyed. 09858_ Imp. Antigrav System destroyed. 09859_ SMDK94BNST GQ>3=R4E25QHN,W 09866_ G-67 Veteran heat short circuits Flexi-carbon Leg. 09873_ G-67 Veteran overheating. 09874_ G-67 Veteran heat spikes uncontrollably. 09874_ G-67 Veteran overheating. 09876_ Flexi-carbon Leg melted. 09876_ G-67 Veteran destroyed. Map ----- +----------------------------------------------------+ | ??????????#?# * #?#??#^ ^ ###+#####?? | | ??????????#?# *#????# ? | | ??????? ????# ##???# ? | | ????#????#??# ##???# ? | | ?????????#??# #????# ? | | ???##?? ???## #????##### %############?? | | ??????? ????# ##???????# #????????????? | | ???????? ???############?###???# % #????????????? | | ??????????#??????# ##??# [#??????? ????? | | ?????????????????# ##??# [#????????????? | | ?????????????????# """" #???# *%=#????????????? | | ?????????? ??????# """" #???#% = #????????????? | | ?????????????????# """" #???# %/ #????????????? | | ???? ????????????# """" #???#[%=!##???????????? | | ???????????????#?# [! #???#=! !#????????????? | | ?????????????????# =|= #???#%!! #????????????? | | ?????????????????#####"#########%!%!#????????????? | | ????????????????????# % % [% %[#????????????? | | ????????????????????#= %*=! #????????????? | | ????????????????????# !!%=! #????????????? | | ????????????????????# ########== #????????????? | | ????????????????????#!%|#[ #![ #????????????? | | ????????????????????# !=#%[ #% #????????????? | | ????????????????????#=%g#%=* # #????????????? | | ????????????????????+/!%g|%% # #????????????? | | ????????????????????# %=#@*% = # % ????????????? | | ????????????????????# [[#[= # ##/##???????????? | | ???????????????????" ######## #? ????????????? | | ????????????????? "%" ?????? ?? ????????????? | | ???????????????? " ##????? ?? ???????????? | | ???????????????#+### ####????? ??? ???????????? | | ??????????????# ???# ????????? ????????????????? | | ??????????????#????# ????????? ????????????????? | | ???????????????????# ?????????? ????????????????? | | ???????????????????# ??????????? ????????????????? | | ???????????????????# ????????????????????????????? | | ???????????????????# ????????????????????????????? | | ???????????????????? ????????????????????????????? | | ?????????????????????????????????????????????????? | | ?????????????????????????????????????????????????? | | ?????????????????????????????????????????????????? | | ?????????????????????????????????????????????????? | | ?????????????????????????????????????????????????? | | ?????????????????????????????????????????????????? | | | | | | | | | | | | | +----------------------------------------------------+ Best States ------------- Heat Dissipation 84 Energy Generation 41 Energy Capacity 580 Matter Stores 783 Matter Capacity 1800 Sight Range 16 Robot Scan Range 15 Terrain Scan Range 16 Terrain Scan Density 10 Additional Mass Support 12 EM Shielding 3 Corruption Containment 12 Corruption Block 20 Armor Coverage 1200 Resistance: TH 30 Core Shielding 30 Power Shielding 66 Propulsion Shielding 66 Weapon Shielding 66 Melee Speed Boost 20 Phase Shifting 10 Evasion (%) 60 Targeting Accuracy 24 Target Analysis 12 Armor Integrity Analysis 30 Recoil Reduction 10 Kinecelleration 30 Defensive Hacking 20 Authchip Count 1 Item Schematics ----------------- Hvy. Assault Cannon | -7/Factory | Scanalyzed Magnetic Acceleration Cannon | -6/Factory | Scanalyzed Q-thruster | -3/Research | Hacked Robot Schematics ------------------ None Fabricated ------------ Imp. Dynamic Insulation System | x2 | -7/Factory | Preloaded Adv. Recalibrator | x2 | -6/Factory | Preloaded L-41 Fighter | x3 | -6/Factory | Preloaded Magnetic Acceleration Cannon | x2 | -6/Factory Alien Tech Used ----------------- None Achievements -------------- None Challenges ------------ None Game ------ Seed EnergyRegenerativeDerivative Manual? 0 Play Time 02:23:45 Cumulative 131.1 hours Start 2023.12.06 @ 22:05:00 End 2023.12.07 @ 00:27:23 Sessions 1 Manual Loads 0 Difficulty Rogue Special Mode None Game No. 101 Rogue 98 Adventurer 3 Explorer 0 Win Type - Total 1 Types 1/0/0/0/0/0/0/0/0 Lore% 68 Gallery% 74 Achievement% 56 Wizard Run 0 Options --------- ASCII 0 Keyboard 0 Movement Mouse Keybinds 0 Fullscreen 2 Font 18/SmallcapsGlow Map View 76x50 Tactical HUD 1 Map Filters NONE Filters NONE Steam 1 RUN: be78cf78-6fde-48f3-9dd4-9b382bca7271